bitfinex/quotes_BTCUSD_20250601
["timestamp","ask_amount","ask_price","bid_price","bid_amount"]
[1748796529998,5.85745706,105250.0,105240.0,3.88199987]
[1748796529999,5.77205805,105250.0,105240.0,3.88199987]
[1748796530203,5.77205805,105250.0,105240.0,3.82047773]
[1748796530412,5.77205805,105250.0,105240.0,3.77296559]
[1748796530695,5.77205805,105250.0,105240.0,3.7336356]
[1748796531325,5.77205805,105250.0,105240.0,3.7221456]
[1748796531905,5.77205805,105250.0,105240.0,3.67462993]
[1748796532127,5.77205805,105250.0,105240.0,3.66222994]
[1748796532390,5.77205805,105250.0,105240.0,3.61471427]
[1748796532561,5.77205805,105250.0,105240.0,3.58331428]
[1748796532769,5.86456927,105250.0,105240.0,3.42429043]
[1748796533125,5.86456927,105250.0,105240.0,2.97811937]
[1748796533331,5.86456927,105250.0,105240.0,2.88308803]
[1748796533512,5.77205805,105250.0,105240.0,2.83557236]
[1748796533749,5.77205805,105250.0,105240.0,2.78805669]
[1748796533960,5.77205805,105250.0,105240.0,2.74054102]
[1748796534135,5.77205805,105250.0,105240.0,2.69302535]
[1748796534385,5.77205805,105250.0,105240.0,2.59799401]
[1748796534568,5.77205805,105250.0,105240.0,2.55047834]
[1748796534778,5.82913377,105250.0,105240.0,2.455447]
[1748796534987,5.82913377,105250.0,105240.0,2.40793133]
[1748796535193,5.82913377,105250.0,105240.0,2.36041566]
[1748796535396,5.82913377,105250.0,105240.0,2.20889181]
[1748796535541,5.82913377,105250.0,105240.0,2.05736796]
[1748796535736,5.7865989,105250.0,105240.0,2.05736796]
[1748796535962,5.7865989,105250.0,105240.0,1.90584411]
[1748796536190,5.7865989,105250.0,105240.0,1.84105642]
[1748796538493,5.7865989,105250.0,105240.0,1.81525642]
[1748796538696,5.7865989,105250.0,105240.0,1.76773789]
[1748796538950,5.87911012,105250.0,105240.0,1.70037285]
[1748796539121,5.87911012,105250.0,105240.0,1.60533579]
[1748796539322,5.87911012,105250.0,105240.0,1.55781726]
[1748796539526,5.87911012,105250.0,105240.0,1.38656873]
[1748796539732,5.8151409,105250.0,105240.0,1.38656873]
[1748796541687,5.8151409,105250.0,105240.0,1.38132873]
[1748796543922,5.8151409,105250.0,105240.0,1.28628797]
[1748796544135,5.8149009,105250.0,105240.0,1.23876759]
[1748796544358,5.8149009,105250.0,105240.0,1.14372683]
[1748796544579,5.8149009,105250.0,105240.0,1.09620645]
[1748796544805,5.8149009,105250.0,105240.0,1.04868607]
[1748796545032,5.8149009,105250.0,105240.0,0.95364531]
[1748796545256,5.8149009,105250.0,105240.0,0.85860455]
[1748796545471,5.8149009,105250.0,105240.0,0.81108417]
[1748796545688,5.8149009,105250.0,105240.0,0.76356379]
[1748796545933,5.8149009,105250.0,105240.0,0.66852303]
[1748796546152,5.8149009,105250.0,105240.0,0.57348227]
[1748796546357,5.84505036,105250.0,105240.0,0.52596189]
[1748796547419,5.84505036,105250.0,105240.0,0.50097189]
[1748796547627,5.8149009,105250.0,105240.0,0.47487189]
[1748796547808,5.8149009,105250.0,105240.0,0.43476189]
[1748796548353,5.8149009,105250.0,105240.0,0.38724336]
[1748796548560,5.8149009,105250.0,105240.0,0.33972483]
[1748796549157,5.8149009,105250.0,105240.0,0.2922063]
[1748796549366,5.8149009,105250.0,105240.0,0.24468777]
[1748796549566,5.8149009,105250.0,105240.0,0.21987777]
[1748796549839,5.90741212,105250.0,105240.0,0.17235924]
[1748796549990,5.90741212,105250.0,105240.0,0.12484071]
[1748796550198,5.90741212,105250.0,105240.0,0.05099218]
[1748796550766,5.90741212,105250.0,105240.0,0.00347365]
[1748796553513,5.90741212,105250.0,105220.0,0.3721]
[1748796553514,0.20906521,105230.0,105220.0,0.3721]
[1748796553726,5.36683936,105230.0,105220.0,0.3721]
[1748796554607,5.36683936,105230.0,105220.0,0.0321]
[1748796554608,5.45935058,105230.0,105220.0,0.0321]
[1748796554860,5.45935058,105230.0,105220.0,0.0331]
[1748796554861,5.76592793,105230.0,105220.0,0.0331]
[1748796555064,5.76592793,105230.0,105220.0,0.0193]
[1748796555695,5.76592793,105230.0,105220.0,0.0173]
[1748796556354,5.77532251,105230.0,105220.0,0.0173]
[1748796556755,5.77532251,105230.0,105220.0,0.0163]
[1748796556935,5.77532251,105230.0,105220.0,0.0314]
[1748796557764,5.77532251,105230.0,105220.0,0.0163]
[1748796558084,5.76592793,105230.0,105220.0,0.0163]
[1748796558702,5.85843915,105230.0,105220.0,0.0163]
[1748796559112,5.24958164,105220.0,105210.0,0.3726]
[1748796559310,5.34543594,105220.0,105210.0,0.3726]
[1748796560389,5.34543594,105220.0,105210.0,0.3746]
[1748796560824,5.34543594,105220.0,105210.0,0.3766]
[1748796562176,5.34543594,105220.0,105210.0,0.3603]
[1748796563050,5.34543594,105220.0,105210.0,0.3583]
[1748796563260,5.34543594,105220.0,105210.0,0.3773]
[1748796563470,5.34743594,105220.0,105210.0,0.3753]
[1748796563886,5.34843594,105220.0,105210.0,0.3753]
[1748796565906,5.34843594,105220.0,105210.0,0.0163]
[1748796566135,5.34843594,105220.0,105210.0,0.0353]
[1748796571500,5.65123594,105220.0,105210.0,0.0353]
[1748796572298,5.65123594,105220.0,105210.0,0.3753]
[1748796573801,5.16786163,105220.0,105210.0,0.3753]
[1748796574014,5.17736462,105220.0,105210.0,0.77806]
[1748796574224,5.36744255,105220.0,105210.0,0.77806]
[1748796574676,5.36744255,105220.0,105210.0,0.78110146]
[1748796574881,5.36744255,105220.0,105210.0,0.77806]
[1748796575694,5.35793938,105220.0,105210.0,0.78110146]
[1748796575826,5.35793938,105220.0,105210.0,0.77806]
[1748796576439,5.34843594,105220.0,105210.0,0.77806]
[1748796578466,5.34843594,105220.0,105210.0,0.77802]
[1748796580580,5.053,105220.0,105210.0,0.97811599]
[1748796580794,5.053,105220.0,105210.0,0.99712539]
[1748796580795,5.08151032,105220.0,105210.0,0.99712539]
[1748796580987,5.07200661,105220.0,105210.0,0.99712539]
[1748796581190,5.07200661,105220.0,105210.0,1.00967131]
[1748796581413,5.07200652,105220.0,105210.0,1.02867981]
[1748796581624,0.003,105220.0,105210.0,1.02867981]
[1748796581951,0.003,105220.0,105210.0,1.03528661]
[1748796582160,0.003,105220.0,105210.0,1.03528637]
[1748796582781,0.001,105220.0,105210.0,1.03528634]
[1748796582926,0.001,105220.0,105210.0,1.03528462]
[1748796583128,0.001,105220.0,105210.0,1.02867981]
[1748796583329,0.05948193,105230.0,105220.0,0.1574038]
[1748796583531,0.04997894,105230.0,105220.0,0.169949]
[1748796583928,0.04997894,105230.0,105220.0,0.16044529]
[1748796584329,0.2400388,105230.0,105220.0,0.15094149]
[1748796584513,0.2400388,105230.0,105220.0,0.15740389]
[1748796584717,0.2430388,105230.0,105220.0,0.15740389]
[1748796585686,5.28353644,105230.0,105220.0,0.1479]
[1748796585894,5.28353644,105230.0,105220.0,0.15740389]
[1748796586597,5.28353644,105230.0,105220.0,0.1479]
[1748796587025,5.28353644,105230.0,105220.0,0.15740389]
[1748796587402,5.28353644,105230.0,105220.0,0.1479]
[1748796587605,5.09347658,105230.0,105220.0,0.1574038]
[1748796588010,5.09347658,105230.0,105220.0,0.15740389]
[1748796588216,5.09347658,105230.0,105220.0,0.34985754]
[1748796588419,5.10297957,105230.0,105220.0,0.16690769]
[1748796588782,5.29303943,105230.0,105220.0,0.15027572]
[1748796588984,5.29303943,105230.0,105220.0,0.15740389]
[1748796589762,5.29303943,105230.0,105220.0,0.1479]
[1748796589976,5.28353689,105230.0,105220.0,0.1479]
[1748796590285,5.28353689,105230.0,105220.0,0.15740389]
[1748796590615,5.09347703,105230.0,105220.0,0.15740389]
[1748796590759,5.09347703,105230.0,105220.0,0.16928341]
[1748796591209,0.02447087,105230.0,105220.0,0.36886487]
[1748796591355,0.04347559,105230.0,105220.0,0.3759925]
[1748796591769,0.05297831,105230.0,105220.0,0.37599259]
[1748796591969,0.04347559,105230.0,105220.0,0.37599259]
[1748796592379,0.01496842,105230.0,105220.0,0.72549585]
[1748796592586,0.00304857,105230.0,105220.0,0.72853694]
[1748796592818,0.00304857,105230.0,105220.0,0.73513331]
[1748796593018,0.00304857,105230.0,105220.0,0.7351335]
[1748796593224,0.00304857,105230.0,105220.0,0.73513403]
[1748796593465,0.00304857,105230.0,105220.0,0.73513432]
[1748796593687,0.00304857,105230.0,105220.0,0.73513434]
[1748796593882,0.00304857,105230.0,105220.0,0.72853668]
[1748796594091,0.00304857,105230.0,105220.0,0.73513483]
[1748796594722,0.00304857,105230.0,105220.0,0.72853668]
[1748796594926,0.00304857,105230.0,105220.0,0.73513311]
[1748796595178,0.00304857,105230.0,105220.0,0.73513383]
[1748796595393,0.00304857,105230.0,105220.0,0.73513381]
[1748796595600,0.00304857,105230.0,105220.0,0.73513481]
[1748796596650,0.00304857,105230.0,105220.0,0.72853668]
[1748796596857,0.00304857,105230.0,105220.0,0.73513347]
[1748796597244,0.00304857,105230.0,105220.0,0.73513322]
[1748796597834,0.00104857,105230.0,105220.0,0.73513322]
[1748796598040,4.857e-05,105230.0,105220.0,0.73209239]
[1748796598261,4.857e-05,105230.0,105220.0,0.7351338]
[1748796598644,4.857e-05,105230.0,105220.0,0.73513409]
[1748796598986,4.857e-05,105230.0,105220.0,0.73513407]
[1748796599425,4.857e-05,105230.0,105220.0,0.72853656]
[1748796599609,4.857e-05,105230.0,105220.0,0.73513299]
[1748796600281,4.857e-05,105230.0,105220.0,0.7351322]
[1748796600944,0.01910772,105230.0,105220.0,0.72562894]
[1748796601150,4.857e-05,105230.0,105220.0,0.7351322]
[1748796601359,4.857e-05,105230.0,105220.0,0.73513225]
[1748796601573,4.857e-05,105230.0,105220.0,0.73513234]
[1748796601782,4.857e-05,105230.0,105220.0,0.72513301]
[1748796601986,4.857e-05,105230.0,105220.0,0.72853607]
[1748796602190,0.00955084,105230.0,105220.0,0.72853607]
[1748796602396,0.01905329,105230.0,105220.0,1.03753419]
[1748796603650,0.01905329,105230.0,105220.0,1.03753634]
[1748796604192,0.00955084,105230.0,105220.0,1.03753634]
[1748796604419,0.01905329,105230.0,105220.0,1.02803308]
[1748796604617,0.00955084,105230.0,105220.0,1.03753634]
[1748796604783,0.01905329,105230.0,105220.0,1.0375385]
[1748796605187,4.857e-05,105230.0,105220.0,1.03753864]
[1748796605385,0.00955084,105230.0,105220.0,1.03749868]
[1748796605613,0.00955084,105230.0,105220.0,1.03089611]
[1748796605816,0.01887636,105230.0,105220.0,1.03749869]
[1748796606575,0.01887636,105230.0,105220.0,1.03749979]
[1748796606784,0.00937409,105230.0,105220.0,1.03089611]
[1748796607044,0.00937409,105230.0,105220.0,1.0375007]
[1748796607677,4.857e-05,105230.0,105220.0,1.0375009]
[1748796607886,4.857e-05,105230.0,105220.0,1.03750069]
[1748796608137,4.857e-05,105230.0,105220.0,1.13335499]
[1748796608343,4.857e-05,105230.0,105220.0,1.13335616]
[1748796608772,4.857e-05,105230.0,105220.0,1.13335606]
[1748796608995,4.857e-05,105230.0,105220.0,1.13335603]
[1748796609213,4.857e-05,105230.0,105220.0,1.58157093]
[1748796609435,4.857e-05,105230.0,105220.0,1.87417093]
[1748796609654,4.857e-05,105230.0,105220.0,1.90332917]
[1748796609871,4.857e-05,105230.0,105220.0,1.9063693]
[1748796610290,4.857e-05,105230.0,105220.0,1.90636806]
[1748796610502,4.857e-05,105230.0,105220.0,1.90836823]
[1748796610688,4.857e-05,105230.0,105220.0,1.91136823]
[1748796610924,4.857e-05,105230.0,105220.0,1.90936823]
[1748796611349,4.857e-05,105230.0,105220.0,1.91236823]
[1748796611784,4.857e-05,105230.0,105220.0,1.91236487]
[1748796611988,4.857e-05,105230.0,105220.0,1.90576368]
[1748796612424,4.857e-05,105230.0,105220.0,1.91236529]
[1748796612635,4.857e-05,105230.0,105220.0,1.91236365]
[1748796613062,4.857e-05,105230.0,105220.0,1.90576368]
[1748796613268,4.857e-05,105230.0,105220.0,1.91236384]
[1748796613471,4.857e-05,105230.0,105220.0,1.90576368]
[1748796613678,4.857e-05,105230.0,105220.0,1.9123626]
[1748796613882,4.857e-05,105230.0,105220.0,1.91236261]
[1748796614098,4.857e-05,105230.0,105220.0,1.91236259]
[1748796614310,4.857e-05,105230.0,105220.0,1.91236261]
[1748796614522,4.857e-05,105230.0,105220.0,1.91236165]
[1748796615162,4.857e-05,105230.0,105220.0,1.91236186]
[1748796615367,4.857e-05,105230.0,105220.0,1.90576366]
[1748796615580,4.857e-05,105230.0,105220.0,1.91236158]
[1748796615986,4.857e-05,105230.0,105220.0,1.9123607]
[1748796616644,4.857e-05,105230.0,105220.0,1.91236072]
[1748796616877,4.857e-05,105230.0,105220.0,1.47868667]
[1748796617115,4.857e-05,105230.0,105220.0,1.91236158]
[1748796617570,4.857e-05,105230.0,105220.0,1.91236088]
[1748796618045,4.857e-05,105230.0,105220.0,1.88016184]
[1748796618525,4.857e-05,105230.0,105220.0,1.88016177]
[1748796618749,4.857e-05,105230.0,105220.0,1.88016298]
[1748796618973,4.857e-05,105230.0,105220.0,1.88016309]
[1748796620247,4.857e-05,105230.0,105220.0,1.88016395]
[1748796620891,4.857e-05,105230.0,105220.0,1.88016365]
[1748796621329,0.08560985,105260.0,105250.0,0.56852621]
[1748796621330,0.09510932,105260.0,105250.0,0.56852621]
[1748796621524,0.09559556,105260.0,105250.0,0.67156625]
[1748796622151,0.08609609,105260.0,105250.0,0.67156625]
[1748796622563,0.08809609,105260.0,105250.0,0.67156625]
[1748796622802,0.08909609,105260.0,105250.0,0.67156625]
[1748796623018,0.08909609,105260.0,105250.0,0.67156627]
[1748796624047,0.09859556,105260.0,105250.0,0.67156627]
[1748796625108,0.012931,105260.0,105250.0,0.67156627]
[1748796626030,0.02243056,105260.0,105250.0,0.67156627]
[1748796626245,0.02243047,105260.0,105250.0,0.67156627]
[1748796626951,0.02243047,105260.0,105250.0,0.66206572]
[1748796627181,0.27783611,105260.0,105250.0,0.45304006]
[1748796627406,0.26833592,105260.0,105250.0,0.45304011]
[1748796627619,0.26833655,105260.0,105250.0,0.45304011]
[1748796627841,0.25883681,105260.0,105250.0,0.45304011]
[1748796628718,0.268337,105260.0,105250.0,0.46254129]
[1748796629265,0.28703274,105260.0,105250.0,0.46254129]
[1748796629915,0.28703274,105260.0,105250.0,0.47204238]
[1748796630130,0.09702704,105260.0,105250.0,0.67156713]
[1748796630567,0.09702704,105260.0,105250.0,0.66206613]
[1748796631243,0.09702704,105260.0,105250.0,0.67156713]
[1748796631706,0.09702704,105260.0,105250.0,0.67156716]
[1748796632615,0.28703274,105260.0,105250.0,0.46254132]
[1748796632829,0.28703274,105260.0,105250.0,0.47204241]
[1748796633267,0.09702641,105260.0,105250.0,0.67156716]
[1748796633534,0.10652588,105260.0,105250.0,0.68106807]
[1748796633753,0.10652588,105260.0,105250.0,0.67156716]
[1748796633998,0.11602616,105260.0,105250.0,0.67156716]
[1748796634491,0.11602607,105260.0,105250.0,0.67156716]
[1748796634705,0.10652588,105260.0,105250.0,0.67156716]
[1748796634924,0.10652588,105260.0,105250.0,0.68106807]
[1748796635584,0.08822579,105260.0,105250.0,0.6905688]
[1748796635800,0.08822579,105260.0,105250.0,0.68106807]
[1748796636023,0.09772598,105260.0,105250.0,0.68106807]
[1748796636248,0.09772598,105260.0,105250.0,0.67818427]
[1748796636486,0.09772598,105260.0,105250.0,0.68768518]
[1748796636700,0.07872578,105260.0,105250.0,0.69718591]
[1748796636908,0.08822579,105260.0,105250.0,0.68768518]
[1748796637115,0.08822579,105260.0,105250.0,0.69718613]
[1748796637571,0.08822579,105260.0,105250.0,0.69718633]
[1748796637952,0.09772598,105260.0,105250.0,0.6781877]
[1748796638213,0.11572598,105260.0,105250.0,0.68768861]
[1748796638425,0.11572598,105260.0,105250.0,0.68769353]
[1748796638673,0.11572589,105260.0,105250.0,0.68769353]
[1748796638875,0.11572589,105260.0,105250.0,0.68769363]
[1748796639097,0.11572589,105260.0,105250.0,0.69719473]
[1748796639312,0.08822579,105260.0,105250.0,0.68769356]
[1748796639546,0.06962579,105260.0,105250.0,0.68769592]
[1748796639800,0.06962579,105260.0,105250.0,0.68106771]
[1748796640048,0.06962579,105260.0,105250.0,0.68769592]
[1748796640655,0.06962579,105260.0,105250.0,0.69719665]
[1748796640892,0.06962579,105260.0,105250.0,0.68769592]
[1748796641126,0.06962579,105260.0,105250.0,0.68769587]
[1748796641347,0.06962579,105260.0,105250.0,0.68106771]
[1748796641549,0.06962579,105260.0,105250.0,0.68769583]
[1748796641758,0.06962579,105260.0,105250.0,0.9705341]
[1748796641967,0.08932579,105260.0,105250.0,0.98003492]
[1748796642394,0.08932579,105260.0,105250.0,0.98003491]
[1748796642634,0.10822579,105260.0,105250.0,0.98003491]
[1748796642852,0.10822579,105260.0,105250.0,0.95440498]
[1748796643093,0.1177267,105260.0,105250.0,0.97053407]
[1748796643302,0.10822642,105260.0,105250.0,0.98003498]
[1748796644205,0.10822642,105260.0,105250.0,0.97340689]
[1748796644415,0.10822642,105260.0,105250.0,0.96103306]
[1748796644626,0.10822687,105260.0,105250.0,0.78051053]
[1748796645113,0.10822687,105260.0,105250.0,0.79001154]
[1748796645326,0.10822687,105260.0,105250.0,0.9895362]
[1748796645937,0.09872668,105260.0,105250.0,0.99903702]
[1748796646367,0.08922658,105260.0,105250.0,0.98953591]
[1748796646565,0.07032658,105260.0,105250.0,0.98003509]
[1748796646771,0.07982677,105260.0,105250.0,0.98003509]
[1748796646973,0.07982677,105260.0,105250.0,0.98003512]
[1748796647134,0.07032658,105260.0,105250.0,0.98003512]
[1748796647333,0.07982668,105260.0,105250.0,0.98953594]
[1748796647747,0.07982668,105260.0,105250.0,0.98003512]
[1748796647940,0.09902668,105260.0,105250.0,0.98004058]
[1748796648145,0.08958192,105260.0,105250.0,0.9734069]
[1748796648323,0.08958192,105260.0,105250.0,0.9800401]
[1748796648546,0.08958192,105260.0,105250.0,0.98954092]
[1748796648747,0.05068192,105260.0,105250.0,0.98954092]
[1748796649213,0.04118182,105260.0,105250.0,0.9895403]
[1748796649431,0.04118137,105260.0,105250.0,0.99904059]
[1748796649636,0.03168154,105260.0,105250.0,0.98953933]
[1748796649856,0.04118128,105260.0,105250.0,0.98953878]
[1748796650076,0.0506812,105260.0,105250.0,0.98953869]
[1748796650285,0.02218198,105260.0,105250.0,1.01873913]
[1748796650511,0.03168145,105260.0,105250.0,1.03743913]
[1748796650725,0.03168145,105260.0,105250.0,1.03743805]
[1748796651258,0.22168715,105260.0,105250.0,0.47274016]
[1748796651481,0.08808174,105260.0,105250.0,0.96091587]
[1748796651698,0.08808174,105260.0,105250.0,0.76426134]
[1748796651911,0.08808174,105260.0,105250.0,0.77089227]
[1748796652156,0.08808174,105260.0,105250.0,0.78989429]
[1748796652370,0.08808174,105260.0,105250.0,0.76139102]
[1748796652585,0.08808174,105260.0,105250.0,0.76138941]
[1748796652860,0.27808744,105260.0,105250.0,0.77089065]
[1748796653307,0.28758772,105260.0,105250.0,0.78039079]
[1748796653525,0.28758772,105260.0,105250.0,0.7803909]
[1748796653746,0.28758772,105260.0,105250.0,0.77376244]
[1748796653934,0.28758772,105260.0,105250.0,0.78989181]
[1748796654172,0.28758772,105260.0,105250.0,0.77088972]
[1748796654358,0.28758772,105260.0,105250.0,0.76426135]
[1748796654567,0.28758772,105260.0,105250.0,0.78039038]
[1748796654778,0.08808174,105260.0,105250.0,0.97041413]
[1748796654992,0.06888174,105260.0,105250.0,0.9637861]
[1748796655208,0.06888174,105260.0,105250.0,0.97041406]
[1748796655433,0.06888174,105260.0,105250.0,0.97041404]
[1748796655645,0.25888744,105260.0,105250.0,0.7708892]
[1748796655859,0.27758744,105260.0,105250.0,0.78039029]
[1748796656771,0.27758744,105260.0,105250.0,0.78989416]
[1748796657006,0.27758744,105260.0,105250.0,0.35304017]
[1748796657236,0.26808779,105260.0,105250.0,0.75131109]
[1748796657462,0.26808779,105260.0,105250.0,0.74468017]
[1748796657697,0.26808779,105260.0,105250.0,0.65131117]
[1748796657918,0.26808779,105260.0,105250.0,0.65131132]
[1748796658147,0.26808779,105260.0,105250.0,0.6513114]
[1748796658365,0.07808209,105260.0,105250.0,0.75131143]
[1748796658581,0.08758237,105260.0,105250.0,0.75131143]
[1748796659017,0.08758165,105260.0,105250.0,0.97033727]
[1748796659234,0.08758165,105260.0,105250.0,0.66869727]
[1748796659458,0.08758165,105260.0,105250.0,0.97029727]
[1748796659659,0.08758165,105260.0,105250.0,0.97029647]
[1748796659865,0.07808155,105260.0,105250.0,0.97029647]
[1748796660080,0.08758174,105260.0,105250.0,0.97029647]
[1748796660354,0.04118155,105260.0,105250.0,0.96725622]
[1748796660597,0.04118146,105260.0,105250.0,0.97962739]
[1748796660817,0.03168163,105260.0,105250.0,1.01375835]
[1748796661023,0.02218198,105260.0,105250.0,1.0137581]
[1748796661244,0.03168154,105260.0,105250.0,1.0137581]
[1748796661457,0.03168154,105260.0,105250.0,1.01375795]
[1748796661926,0.03168154,105260.0,105250.0,1.01679815]
[1748796662144,0.03168154,105260.0,105250.0,1.01375795]
[1748796662297,0.03168154,105260.0,105250.0,1.016798]
[1748796662710,0.04118119,105260.0,105250.0,1.0137578]
[1748796663351,0.04118119,105260.0,105250.0,1.01375794]
[1748796663764,0.03168154,105260.0,105250.0,1.00712794]
[1748796663970,0.04118128,105260.0,105250.0,1.01679795]
[1748796664219,0.04118128,105260.0,105250.0,1.01679797]
[1748796664441,0.03168154,105260.0,105250.0,1.01679796]
[1748796665450,0.03168154,105260.0,105250.0,1.01679802]
[1748796665641,0.03168154,105260.0,105250.0,1.01679804]
[1748796666259,0.03168154,105260.0,105250.0,1.01016813]
[1748796666487,0.03168154,105260.0,105250.0,1.01679823]
[1748796666639,0.02218198,105260.0,105250.0,1.0167991]
[1748796666850,0.03168145,105260.0,105250.0,1.0167991]
[1748796667051,0.03168145,105260.0,105250.0,1.01679988]
[1748796667370,0.03168145,105260.0,105250.0,1.01679991]
[1748796667595,0.02218198,105260.0,105250.0,1.01679991]
[1748796667734,0.02218198,105260.0,105250.0,1.03499991]
[1748796667966,0.03168154,105260.0,105250.0,1.03499991]
[1748796668173,0.04118128,105260.0,105250.0,1.01679991]
[1748796668771,0.03168154,105260.0,105250.0,1.01679991]
[1748796668975,0.04118128,105260.0,105250.0,1.01016813]
[1748796669251,0.04118128,105260.0,105250.0,1.01679995]
[1748796669671,0.04118128,105260.0,105250.0,0.99879995]
[1748796669878,0.04118128,105260.0,105250.0,0.99868]
[1748796670094,5.38604955,105260.0,105250.0,0.44967197]
[1748796670312,5.38604955,105260.0,105250.0,0.34967276]
[1748796670313,5.51120402,105260.0,105250.0,0.34967276]
[1748796670516,5.51120402,105260.0,105250.0,0.34304029]
[1748796670730,5.43503893,105260.0,105250.0,0.34304029]
[1748796671145,5.40634208,105260.0,105250.0,0.34304029]
[1748796671350,5.40634208,105260.0,105250.0,0.44304029]
[1748796672208,5.40634208,105260.0,105250.0,0.34304029]
[1748796672407,0.21852475,105250.0,105240.0,0.41144]
[1748796672618,0.23060736,105250.0,105240.0,0.7544805]
[1748796672824,0.24010827,105250.0,105240.0,0.76111135]
[1748796673446,0.39161569,105250.0,105220.0,0.01]
[1748796673663,0.39161569,105250.0,105200.0,0.35632589]
[1748796673664,0.00950407,105210.0,105200.0,0.35632589]
[1748796673879,0.01900742,105220.0,105210.0,0.01]
[1748796674100,0.01900742,105220.0,105210.0,0.11]
[1748796674312,0.20908535,105220.0,105210.0,0.45]
[1748796674522,0.20908535,105220.0,105210.0,0.11]
[1748796674734,0.20908535,105220.0,105210.0,0.45]
[1748796675180,0.20908535,105220.0,105210.0,0.45014577]
[1748796675945,0.20908535,105220.0,105210.0,0.46874577]
[1748796676414,0.20908535,105220.0,105210.0,0.46974577]
[1748796676875,0.01900742,105220.0,105210.0,0.46974577]
[1748796677092,0.20908535,105220.0,105210.0,0.46974577]
[1748796677310,0.01900742,105220.0,105210.0,0.46974577]
[1748796677535,0.01900742,105220.0,105210.0,0.66934646]
[1748796678395,0.01900697,105220.0,105210.0,0.66934646]
[1748796678568,0.02851077,105220.0,105210.0,0.69835107]
[1748796678714,0.02851077,105220.0,105210.0,0.68884646]
[1748796679106,0.02851077,105220.0,105210.0,0.49875056]
[1748796679286,0.02851077,105220.0,105210.0,0.50825526]
[1748796679756,0.02851077,105220.0,105210.0,0.51775987]
[1748796680008,0.03801466,105220.0,105210.0,0.51775987]
[1748796682565,0.03801466,105220.0,105210.0,0.52726439]
[1748796682773,0.04739022,105220.0,105210.0,0.51775987]
[1748796683304,0.04739022,105220.0,105210.0,0.71736038]
[1748796683519,0.03788642,105220.0,105210.0,0.71736038]
[1748796683738,0.03788642,105220.0,105210.0,0.70785586]
[1748796684192,0.03788642,105220.0,105210.0,0.71736038]
[1748796684642,0.03788642,105220.0,105210.0,0.70785586]
[1748796685210,0.03788624,105220.0,105210.0,0.71736038]
[1748796685424,0.04739013,105220.0,105210.0,0.70785586]
[1748796685647,0.04739013,105220.0,105210.0,0.71736038]
[1748796686098,0.00937556,105220.0,105210.0,0.71736038]
[1748796686317,0.06028325,105250.0,105230.0,0.23736775]
[1748796686543,0.06028325,105250.0,105230.0,0.35736539]
[1748796686544,0.01900281,105240.0,105230.0,0.35736539]
[1748796686796,0.02850462,105240.0,105230.0,0.36686793]
[1748796687015,0.02850453,105240.0,105230.0,0.36686793]
[1748796687472,0.02850453,105240.0,105230.0,0.37637038]
[1748796687695,0.02850453,105240.0,105230.0,0.36686793]
[1748796687915,0.02850453,105240.0,105230.0,0.36786793]
[1748796688130,0.02850453,105240.0,105230.0,0.36886793]
[1748796688336,0.02850453,105240.0,105230.0,0.70786793]
[1748796688566,0.04100634,105240.0,105230.0,0.70786793]
[1748796688776,0.04400634,105240.0,105230.0,0.70786793]
[1748796689474,0.04400634,105240.0,105230.0,0.68886276]
[1748796689686,0.05350834,105240.0,105230.0,0.69836548]
[1748796692624,0.23404887,105240.0,105230.0,0.49880299]
[1748796692884,0.23404887,105240.0,105230.0,0.8001629]
[1748796693135,0.04400707,105240.0,105230.0,0.80966571]
[1748796693341,0.04400707,105240.0,105230.0,0.99972557]
[1748796693779,0.04400707,105240.0,105230.0,1.00922829]
[1748796693963,0.04400707,105240.0,105230.0,1.01873092]
[1748796694207,0.04400707,105240.0,105230.0,1.00922829]
[1748796695745,0.04400707,105240.0,105230.0,1.01873092]
[1748796696210,0.04400707,105240.0,105230.0,1.00922829]
[1748796696876,0.03450507,105240.0,105230.0,1.02823346]
[1748796697098,0.03450507,105240.0,105230.0,1.01873092]
[1748796697315,0.04400707,105240.0,105230.0,0.99972557]
[1748796697528,0.04400762,105240.0,105230.0,0.98071986]
[1748796697737,0.04400762,105240.0,105230.0,0.99022276]
[1748796697950,0.03450553,105240.0,105230.0,0.99964539]
[1748796698154,0.03450553,105240.0,105230.0,0.99964548]
[1748796699054,0.22454733,105240.0,105230.0,0.79058]
[1748796699247,0.04400762,105240.0,105230.0,0.99014267]
[1748796699523,0.03450553,105240.0,105230.0,0.99014267]
[1748796699782,0.03450553,105240.0,105230.0,0.99964539]
[1748796699990,0.03450553,105240.0,105230.0,0.99014267]
[1748796700370,0.03450553,105240.0,105230.0,1.00268622]
[1748796701830,0.03450553,105240.0,105230.0,1.00268616]
[1748796703102,0.03450553,105240.0,105230.0,0.99318344]
[1748796703512,0.03450553,105240.0,105230.0,1.00268616]
[1748796704383,0.04400762,105240.0,105230.0,0.99318344]
[1748796704585,0.02500317,105240.0,105230.0,1.00268607]
[1748796704794,0.03450507,105240.0,105230.0,1.00268607]
[1748796705372,0.04400716,105240.0,105230.0,1.00268616]
[1748796705616,0.03450507,105240.0,105230.0,1.00268616]
[1748796705938,0.04400716,105240.0,105230.0,1.00268634]
[1748796706191,0.03450507,105240.0,105230.0,1.01218906]
[1748796706371,0.04400707,105240.0,105230.0,1.01218906]
[1748796706805,0.03450507,105240.0,105230.0,1.01218906]
[1748796707005,0.04400707,105240.0,105230.0,1.01218906]
[1748796707753,0.22454742,105240.0,105230.0,0.47284077]
[1748796707953,0.22454742,105240.0,105230.0,0.75524077]
[1748796708748,0.22454742,105240.0,105230.0,0.76474376]
[1748796708948,0.22454742,105240.0,105230.0,0.76170299]
[1748796709174,0.22454742,105240.0,105230.0,0.76474379]
[1748796709376,0.22454742,105240.0,105230.0,0.7552408]
[1748796710689,0.22454742,105240.0,105230.0,0.77444085]
[1748796712071,0.22454742,105240.0,105230.0,0.75524085]
[1748796712607,0.22454742,105240.0,105230.0,0.45404085]
[1748796712767,0.2150457,105240.0,105230.0,0.75516085]
[1748796715164,0.2150457,105240.0,105230.0,0.75516087]
[1748796715375,0.2150457,105240.0,105230.0,0.76179393]
[1748796715583,0.2150457,105240.0,105230.0,0.75516087]
[1748796715794,0.2150457,105240.0,105230.0,0.76179397]
[1748796715998,0.2150457,105240.0,105230.0,0.76179402]
[1748796716639,0.2150457,105240.0,105230.0,0.77129701]
[1748796716850,0.2150457,105240.0,105230.0,0.76179402]
[1748796717102,0.2150457,105240.0,105230.0,0.76179446]
[1748796717348,0.2150457,105240.0,105230.0,0.78089446]
[1748796717622,0.2150457,105240.0,105230.0,0.79039775]
[1748796717857,0.2150457,105240.0,105230.0,0.76179476]
[1748796718827,0.2150457,105240.0,105230.0,0.77129775]
[1748796719036,0.2150457,105240.0,105230.0,0.76179576]
[1748796719476,0.2150457,105240.0,105230.0,0.76179552]
[1748796720126,0.2150457,105240.0,105230.0,0.77129847]
[1748796720544,0.2150457,105240.0,105230.0,0.76179548]
[1748796720754,0.2150457,105240.0,105230.0,0.76179553]
[1748796720967,0.2150457,105240.0,105230.0,0.77129852]
[1748796721188,0.2055438,105240.0,105230.0,0.77129894]
[1748796721473,0.02500372,105240.0,105230.0,0.9899617]